Cogmind - Beta 13 @@@ ROGUE MODE // 2024.04.20 @ 12:06:14 Player: Olafz Result: Destroyed by Y-64 Sentinel with Wave Gun Performance ------------- Evolutions (3) 1500 Regions Visited (8) 1600 Robots Destroyed (56) 280 Value Destroyed (1861) 1861 Prototype IDs (4) 80 Alien Tech Used (0) 0 Bonus (41) 41 TOTAL SCORE: 5362 Bonus ------- Follower Combat Kills 41 Cogmind --------- Core Integrity 0/700 Matter 300/300 Energy 98/100 System Corruption 0% Temperature Cool (9) Movement Core (50) Location -7/Lower Caves Parts ------- > --- POWER (1) -------- (None) > --- PROPULSION (4) --- (None) > --- UTILITY (5) ------ Improved Signal Interpreter Improved Utility Shielding > --- WEAPON (3) ------- (None) > --- INVENTORY (5) ---- Cesium-ion Thruster High-capacity Storage Unit Gauss Cannon Power Maul Axe Peak State ------------ > --- POWER ------------ Light Angular Momentum Engine > --- PROPULSION ------- Carbon-fiber Leg Titanium Leg Makeshift Leg > --- UTILITY ---------- Improved Heat Sink High-capacity Storage Unit Makeshift Terrain Scanner Modified TNC > --- WEAPON ----------- Particle Gun Particle Cannon Gauss Rifle > --- INVENTORY -------- Ion Engine Improved Ion Engine Light Nuclear Core Aluminum Leg Aluminum Leg Aluminum Leg Carbon-fiber Leg Wheel Compact Wheel Aerolev Unit Aerolev Unit Improved Heat Sink Improved Heat Sink Small Storage Unit High-capacity Battery Improved Signal Interpreter Makeshift System Restoration Module Beam Rifle Heavy Assault Rifle Mini Grenade Launcher [Rating: 44] Favorites ----------- Power Light Nuclear Core Engine Ion Engine Power Core Light Nuclear Core Propulsion Carbon-fiber Leg Treads Light Treads Leg Carbon-fiber Leg Hover Unit Aerolev Unit Utility High-capacity Storage Unit Device Improved Heat Sink Storage High-capacity Storage Unit Processor Modified TNC Protection Improved Utility Shielding Weapon Gauss Rifle Energy Gun Particle Gun Energy Cannon Particle Cannon Ballistic Gun Gauss Rifle Launcher Improved Grenade Launcher Impact Weapon Great Maul Slashing Weapon Axe Build | -11 -10 -10 -10 -9 -8 -7 -7 -7 ------- Run | Yrd Mat Min Exi Min Mat Fac Low Low Slots Evolved 6 | . . . . . 4 2 . . Power . | . . . . . . . . . Propulsion 2 | . . . . . 1 1 . . Utility 3 | . . . . . 2 1 . . Weapon 1 | . . . . . 1 . . . Parts Attached 76 | . 5 . 7 2 34 11 11 6 Power 15 | . 1 . 1 1 7 2 3 . Engine 7 | . 1 . 1 1 3 . 1 . Core 8 | . . . . . 4 2 2 . Reactor . | . . . . . . . . . Propulsion 23 | . 2 . 4 . 13 . 3 1 Treads 6 | . 2 . . . . . 3 1 Leg 14 | . . . 4 . 10 . . . Wheel . | . . . . . . . . . Hover 3 | . . . . . 3 . . . Flight . | . . . . . . . . . Utility 17 | . 1 . 1 . 7 4 1 3 Device 7 | . . . . . 5 1 1 . Storage 3 | . 1 . . . 1 . . 1 Processor 3 | . . . 1 . 1 1 . . Hackware . | . . . . . . . . . Protection 4 | . . . . . . 2 . 2 Artifact . | . . . . . . . . . Weapon 21 | . 1 . 1 1 7 5 4 2 Energy Gun 8 | . 1 . . . 6 1 . . Energy Cannon 1 | . . . . 1 . . . . Ballistic Gun 2 | . . . 1 . 1 . . . Ballistic Cannon . | . . . . . . . . . Launcher 1 | . . . . . . 1 . . Special Weapon . | . . . . . . . . . Impact Weapon 5 | . . . . . . 2 2 1 Slashing Weapon 4 | . . . . . . 1 2 1 Piercing Weapon . | . . . . . . . . . Special Melee Weapon . | . . . . . . . . . Unidentified Prototypes 4 | . . . 1 . 2 1 . . Parts Lost 43 | . 6 . . . 18 3 9 7 Power 9 | . 2 . . . 4 1 2 . Propulsion 15 | . 1 . . . 7 1 2 4 Utility 6 | . . . . . 1 . 3 2 Weapon 13 | . 3 . . . 6 1 2 1 Highest Loss Streak 8 | . 3 . . . 8 2 5 5 To Critical Strikes 2 | . . . . . 1 . . 1 Average Slot Usage (%) 79 | . 74 28 66 99 97 75 54 75 Engine 5 | . 9 . 4 13 5 . . . Core 2 | . . . . . 3 6 5 6 Treads 4 | . 26 14 2 . . . 5 19 Leg 16 | . . . 23 28 26 . . . Hover 1 | . . . . . . 19 5 . Device 4 | . . . . . 11 7 6 5 Storage 9 | . 15 14 14 14 10 5 . . Processor 11 | . . . 9 14 14 15 10 7 Protection 2 | . . . . . . 7 2 13 Energy Gun 5 | . 13 . . . 16 . . . Energy Cannon 3 | . . . . 13 5 . . . Ballistic Gun 6 | . 8 . 11 14 3 2 . . Impact Weapon 2 | . . . . . . 6 9 12 Slashing Weapon 1 | . . . . . . 1 5 6 Naked Turns . | . . . . . . . . . Heaviest Build 65 | 14 54 40 49 55 62 61 18 65 Greatest Support 76 | 20 40 20 35 35 52 23 76 76 Greatest Overweight (x) 19 | . 2 1 1 1 19 3 4 1 Average Overweight (x) . | . . 1 1 1 1 1 . . Largest Inventory Capacity 20 | . 20 20 20 20 20 20 5 20 Average Capacity 16 | . 19 20 20 20 20 16 5 7 Most Carried 20 | . 7 5 9 11 20 13 5 5 Average Carried 9 | . 6 5 7 10 17 10 3 1 Final Capacity 20 | 8 20 20 20 20 20 5 5 5 Final Carried 14 | 6 5 5 9 11 14 5 3 5 Class Distribution -------------------- 60% | Mutant 24% | Scavenger-Skirmisher 8% | Scavenger-Mutant Dominant Class ---------------- Mutant | -10/Materials Mutant | -10/Mines Mutant | -10/Exiles Mutant | -9/Mines Scavenger-Skirmisher | -8/Materials Scavenger-Mutant | -7/Factory Mutant | -7/Lower Caves Mutant | -7/Lower Caves Resources | -11 -10 -10 -10 -9 -8 -7 -7 -7 ----------- Run | Yrd Mat Min Exi Min Mat Fac Low Low Matter Collected 1336 | 200 79 . 150 114 343 200 167 83 Remotely . | . . . . . . . . . Salvage Created 2038 | . 171 . 211 40 1109 250 205 52 Parts 113 | . 7 . 13 6 71 7 6 3 Haulers Intercepted 2 | . . . . . 2 . . . Recyclers Shooed . | . . . . . . . . . Parts Field Recycled . | . . . . . . . . . Retrieved Matter . | . . . . . . . . . Parts Self-Destructed 13 | . . . . . . . 6 7 Prevented 1 | . . . . . . . . 1 Kills | -11 -10 -10 -10 -9 -8 -7 -7 -7 ------- Run | Yrd Mat Min Exi Min Mat Fac Low Low Combat Hostiles Destroyed 46 | . 5 . 2 3 21 7 7 1 Melee 9 | . . . . . . 3 5 1 Guns 27 | . 4 . 2 3 18 . . . Cannons 2 | . . . . . 2 . . . AOE 4 | . 1 . . . . 3 . . Classes Destroyed 9 | . 2 . . . 5 2 . . Worker 4 | . . . . . 4 . . . Tunneler 1 | . . . . . . 1 . . Hauler 2 | . . . . . 2 . . . Watcher 3 | . . . . . 3 . . . Swarmer 12 | . 1 . . 3 4 . 4 . Grunt 22 | . 4 . 2 . 9 5 2 . Duelist 1 | . . . . . . 1 . . Sentry 7 | . . . . . 6 1 . . Hunter 4 | . . . . . 2 . 1 1 Best Kill Streak 5 | . 3 . 1 3 5 4 4 1 Combat Bots Only 5 | . 3 . 1 3 5 3 4 1 Max Kills in Single Turn 2 | . 1 . 1 1 2 2 1 1 Gunslinging . | . . . . . . . . . Exploded 2 | . 1 . . . . 2 . . Melee 1 | . . . . . . 1 1 1 Uniques/NPCs Destroyed . | . . . . . . . . . Combat | -11 -10 -10 -10 -9 -8 -7 -7 -7 -------- Run | Yrd Mat Min Exi Min Mat Fac Low Low Hostile Shots Fired 478 | . 99 . . 14 181 32 89 63 Missed 131 | . 25 . . 6 42 14 24 20 Damage Taken 5395 | . 871 . . 58 2191 295 1011 969 Core 1333 | . 200 . . 18 402 56 309 348 Absorbed by Shields . | . . . . . . . . . Redirected to Shielding 136 | . . . . . . 8 104 24 Core Remaining (%) 46 | 100 . . . 12 26 . . . Volleys Fired 152 | . 40 . 21 8 77 6 . . Largest 3 | . 2 . 1 2 3 1 . . Hottest 195 | . 100 . 28 96 195 36 . . Shots Fired 302 | . 59 . 20 10 207 6 . . Gun 263 | . 59 . 20 8 175 1 . . Cannon 34 | . . . . 2 32 . . . Launcher 5 | . . . . . . 5 . . Special . | . . . . . . . . . Kinetic 79 | . 16 . 20 8 34 1 . . Thermal 218 | . 43 . . 2 173 . . . Explosive 5 | . . . . . . 5 . . Electromagnetic . | . . . . . . . . . Robot Hit Streak 20 | . 9 . 12 2 20 6 . . Robot Miss Streak 4 | . 4 . 1 3 4 . . . Penetration Max 1 | . . . . . 1 . . . Secondary Targets 1 | . . . . . 1 . . . Max Gunslinging Chain 1 | . . . . . 1 . . . Shots Hit Robots 211 | . 38 . 17 4 123 11 17 1 Core Hits 90 | . 10 . 6 3 55 11 5 . Critical Kills 2 | . . . . . 1 1 . . Critical Parts Destroyed 5 | . . . . . . 1 3 1 Critical Strikes 9 | . 1 . . . 2 2 3 1 Burn 2 | . 1 . . . 1 . . . Destroy 1 | . . . . . 1 . . . Smash 6 | . . . . . . 2 3 1 Melee Attacks 38 | . . . . . . 5 31 2 Impact 33 | . . . . . . 5 26 2 Slashing 5 | . . . . . . . 5 . Piercing . | . . . . . . . . . Sneak Attacks 2 | . . . . . . 2 . . Combat Hostiles 2 | . . . . . . 2 . . Follow-up Attacks 3 | . . . . . . 1 2 . Damage Inflicted 4749 | . 497 . 382 68 2196 779 778 49 Guns 2810 | . 494 . 382 68 1845 21 . . Cannons 348 | . . . . . 348 . . . Explosions 456 | . . . . . . 456 . . Melee 1129 | . . . . . . 302 778 49 Ramming 6 | . 3 . . . 3 . . . Kinetic 1076 | . 146 . 382 68 459 21 . . Thermal 2163 | . 348 . . . 1734 81 . . Explosive 375 | . . . . . . 375 . . Electromagnetic . | . . . . . . . . . Impact 1026 | . . . . . . 302 675 49 Slashing 103 | . . . . . . . 103 . Piercing . | . . . . . . . . . Highest Corruption 2 | . 2 2 2 2 . . . . Average Corruption 2 | . 2 2 2 2 . . . . Corruption Purged . | . . . . . . . . . Corruption Blocked . | . . . . . . . . . Effects 31 | . 1 2 21 7 . . . . Message Errors 8 | . . 1 5 2 . . . . Matter Fused 11 | . 1 . 9 1 . . . . Heat Flow Errors 4 | . . . 3 1 . . . . Energy Discharges 2 | . . 1 1 . . . . . Parts Fused 1 | . . . 1 . . . . . Data Loss (minor) 3 | . . . 1 2 . . . . Alerts 1 | . . . . 1 . . . . Weapon Failures 1 | . . . 1 . . . . . Overload Shots . | . . . . . . . . . Overflow Damage 289 | . . . . . . 80 160 49 Projectiles . | . . . . . . . . . Explosions . | . . . . . . . . . Melee 289 | . . . . . . 80 160 49 Knockbacks 5 | . . . . . . 1 4 . Impact 5 | . . . . . . 1 4 . Kinetic . | . . . . . . . . . Secondary . | . . . . . . . . . Self-Inflicted Damage 82 | . . . . . . 82 . . Shots 3 | . . . . . . 3 . . Rammed 3 | . 3 . . . . . . . Targets Rammed 4 | . 3 . . . 1 . . . Kicked 1 | . . . . . 1 . . . Crushed . | . . . . . . . . . Highest Temperature 593 | . 263 . 249 269 593 287 . 2 Average Temperature 131 | . 74 . 114 88 159 137 . 2 Received Heat Transfer 1842 | . 357 . . . 945 108 198 234 Effects 19 | . 1 . . . 18 . . . Shutdowns 2 | . . . . . 2 . . . Energy Bleed 1 | . . . . . 1 . . . Interference 5 | . 1 . . . 4 . . . Matter Decay 3 | . . . . . 3 . . . Damage (minor) 1 | . . . . . 1 . . . Damage (major) 7 | . . . . . 7 . . . Siege Activations . | . . . . . . . . . Robots Corrupted . | . . . . . . . . . Combat Hostiles . | . . . . . . . . . Parts Fried 2 | . . . . . . . 1 1 Impact Corruptions 8 | . . . . . . 2 5 1 Robots Melted 1 | . . . . . 1 . . . Combat Hostiles 1 | . . . . . 1 . . . Parts Melted 11 | . 4 . . . 7 . . . Heat Transferred 5193 | . 1110 . . . 4033 50 . . Parts Sabotaged . | . . . . . . . . . Parts Stolen . | . . . . . . . . . Parts Stripped . | . . . . . . . . . Power Chain Reactions . | . . . . . . . . . Alert | -11 -10 -10 -10 -9 -8 -7 -7 -7 ------- Run | Yrd Mat Min Exi Min Mat Fac Low Low Peak Influence 357 | . 105 28 . 85 222 357 . . Initial 65 | . . 28 . . 33 65 . . Average 91 | . 63 28 . 15 114 194 . . Maximum Alert Level 1 | . . . . . 1 1 . . Low Security (%) 86 | . 100 100 . 100 85 46 . . Level 1 13 | . . . . . 14 53 . . Level 2 . | . . . . . . . . . Level 3 . | . . . . . . . . . Level 4 . | . . . . . . . . . Level 5 . | . . . . . . . . . High Security . | . . . . . . . . . Max Security . | . . . . . . . . . Squads Dispatched 6 | . 1 . . . 3 1 . 1 Investigation 3 | . 1 . . . 2 . . . Extermination . | . . . . . . . . . Reinforcement 2 | . . . . . 1 1 . . Assault 1 | . . . . . . . . 1 Garrison . | . . . . . . . . . Intercept . | . . . . . . . . . Searches Triggered . | . . . . . . . . . Construction Impeded . | . . . . . . . . . Haulers Reinforced . | . . . . . . . . . Active Scanning Responses . | . . . . . . . . . Cargo Convoy Interrupts . | . . . . . . . . . Stealth | -11 -10 -10 -10 -9 -8 -7 -7 -7 --------- Run | Yrd Mat Min Exi Min Mat Fac Low Low Distress Signals 1 | . . . . . 1 . . . Communications Jammed . | . . . . . . . . . Distress Signals . | . . . . . . . . . Times Spotted 88 | . 10 . . 3 38 8 14 15 Peak Tracking Total 10 | . 3 . . 3 6 5 6 10 Tactical Retreats 7 | . 1 . . . 1 1 3 1 Traps | -11 -10 -10 -10 -9 -8 -7 -7 -7 ------- Run | Yrd Mat Min Exi Min Mat Fac Low Low Traps Triggered 2 | . 1 . . . 1 . . . Indirectly . | . . . . . . . . . Trap Hack Attempts . | . . . . . . . . . Triggered . | . . . . . . . . . Disarmed . | . . . . . . . . . Reprogrammed . | . . . . . . . . . Reused . | . . . . . . . . . Traps Extracted . | . . . . . . . . . Installed . | . . . . . . . . . Triggered 2 | . . . . . . . . 2 Machines | -11 -10 -10 -10 -9 -8 -7 -7 -7 ---------- Run | Yrd Mat Min Exi Min Mat Fac Low Low Machines Disabled 3 | . . . . 1 . 2 . . Max in Single Turn 2 | . . . . 1 . 2 . . Machines Repaired . | . . . . . . . . . Machines Dismantled . | . . . . . . . . . Machines Sabotaged . | . . . . . . . . . Overloaded Fab Kills . | . . . . . . . . . Hacking | -11 -10 -10 -10 -9 -8 -7 -7 -7 --------- Run | Yrd Mat Min Exi Min Mat Fac Low Low Machines Accessed 4 | . . . . . 2 1 1 . Terminals 3 | . . . . . 2 . 1 . Fabricators 1 | . . . . . . 1 . . Repair Stations . | . . . . . . . . . Recycling Units . | . . . . . . . . . Scanalyzers . | . . . . . . . . . Garrison Access . | . . . . . . . . . Total Hacks 6 | . . . . . 4 1 1 . Successful 3 | . . . . . 1 1 1 . Failed 3 | . . . . . 3 . . . Catastrophic 1 | . . . . . 1 . . . Database Lockouts . | . . . . . . . . . Manual 3 | . . . 1 . 2 . . . Terminals 5 | . . . . . 4 . 1 . Fabricators 1 | . . . . . . 1 . . Repair Stations . | . . . . . . . . . Recycling Units . | . . . . . . . . . Scanalyzers . | . . . . . . . . . Garrison Access . | . . . . . . . . . Terminal Hacks 2 | . . . . . 1 . 1 . Record 1 | . . . . . . . 1 . Branch Access Points 1 | . . . . . 1 . . . Fabricator Hacks 1 | . . . . . . 1 . . Network Status 1 | . . . . . . 1 . . Repair Station Hacks . | . . . . . . . . . Recycling Unit Hacks . | . . . . . . . . . Scanalyzer . | . . . . . . . . . Garrison Access Hacks . | . . . . . . . . . Unauthorized Hacks . | . . . . . . . . . Terminals . | . . . . . . . . . Fabricators . | . . . . . . . . . Repair Stations . | . . . . . . . . . Recycling Units . | . . . . . . . . . Scanalyzers . | . . . . . . . . . Garrison Access . | . . . . . . . . . Data Cores Recovered . | . . . . . . . . . Used . | . . . . . . . . . Hacking Detections 2 | . . . . . 2 . . . Full Trace Events 1 | . . . . . 1 . . . Feedback Events . | . . . . . . . . . Feedback Blocked . | . . . . . . . . . Robot Schematics Acquired . | . . . . . . . . . Robots Built . | . . . . . . . . . Authchips . | . . . . . . . . . Time . | . . . . . . . . . Total Robot Build Rating . | . . . . . . . . . Part Schematics Acquired . | . . . . . . . . . Parts Built . | . . . . . . . . . Authchips . | . . . . . . . . . Time . | . . . . . . . . . Total Part Build Rating . | . . . . . . . . . Parts Repaired . | . . . . . . . . . Time . | . . . . . . . . . Parts Recycled . | . . . . . . . . . Recycled Matter . | . . . . . . . . . Retrieved Matter . | . . . . . . . . . Retrieved Components . | . . . . . . . . . Parts Scanalyzed . | . . . . . . . . . Part Schematics Acquired . | . . . . . . . . . Parts Damaged . | . . . . . . . . . Bothacking | -11 -10 -10 -10 -9 -8 -7 -7 -7 ------------ Run | Yrd Mat Min Exi Min Mat Fac Low Low Used RIF Installer . | . . . . . . . . . Robots Hacked . | . . . . . . . . . Non-combat . | . . . . . . . . . Combat . | . . . . . . . . . Robot Hacks Applied . | . . . . . . . . . Relay Couplers Released . | . . . . . . . . . Fabnet Peak Effective % . | . . . . . . . . . Robots Rewired . | . . . . . . . . . Allies Hacked . | . . . . . . . . . Hacks Repelled . | . . . . . . . . . Allies | -11 -10 -10 -10 -9 -8 -7 -7 -7 -------- Run | Yrd Mat Min Exi Min Mat Fac Low Low Total Allies 1 | . . 1 . . . . . . Largest Group 1 | . . 1 1 . . . . . Highest-Rated Group 31 | . . 31 31 . . . . . Highest-Rated Ally 31 | . . 31 31 . . . . . Total Orders . | . . . . . . . . . Ally Attacks 1 | . . . 1 . . . . . Total Damage 21 | . . . 21 . . . . . Kills 1 | . . . 1 . . . . . Allies Corrupted . | . . . . . . . . . Allies Melted . | . . . . . . . . . Intel | -11 -10 -10 -10 -9 -8 -7 -7 -7 ------- Run | Yrd Mat Min Exi Min Mat Fac Low Low Robot Analysis Total . | . . . . . . . . . Derelict Logs Recovered 2 | . . . . 1 . . . 1 Drone Launches . | . . . . . . . . . Drone Recoveries . | . . . . . . . . . Exploration | -11 -10 -10 -10 -9 -8 -7 -7 -7 ------------- Run | Yrd Mat Min Exi Min Mat Fac Low Low Turns Passed 5143 | . 313 84 1134 705 1480 326 566 535 Spaces Moved 2662 | 1 86 29 532 341 552 228 546 347 Core 76 | . . . . . 1 . 38 37 Treads 613 | . 75 29 76 . . . 123 310 Legs 1351 | 1 11 . 456 341 542 . . . Wheels . | . . . . . . . . . Hover 622 | . . . . . 9 228 385 . Flight . | . . . . . . . . . Fastest Speed 46 | 120 120 240 190 200 105 46 46 50 Average Speed 164 | 120 227 240 202 200 198 115 87 148 Slowest Speed 1000 | 120 320 240 240 200 1000 226 250 160 Overloaded Moves . | . . . . . . . . . Propulsion Burnouts . | . . . . . . . . . Robots Hopped . | . . . . . . . . . Cave-ins Triggered . | . . . . . . . . . Exploration Rate (%) 39 | 2 27 7 91 65 43 5 65 47 Regions Visited 8 Branch Regions 5 Pre-discovered Areas 1 | . . . . 1 . . . . Known Exits Taken 3 | . . . . . 1 1 1 . Unknown Exits Taken 5 | 1 1 1 1 1 . . . . Scrap Searched 7 | . . . . 3 . . 2 2 Spaces Dug . | . . . . . . . . . Terrain Destroyed 68 | . . . . 1 1 66 . . Melee . | . . . . . . . . . Projectile 2 | . . . . 1 1 . . . AOE 66 | . . . . . . 66 . . Terrain Rammed . | . . . . . . . . . Walls Destroyed . | . . . . . . . . . Machines Disabled . | . . . . . . . . . Actions | -11 -10 -10 -10 -9 -8 -7 -7 -7 --------- Run | Yrd Mat Min Exi Min Mat Fac Low Low Total 3120 | . 140 44 566 354 776 281 593 366 Wait 114 | . 4 16 . 2 65 17 6 4 Move 2654 | . 85 28 531 340 551 227 545 347 Hop . | . . . . . . . . . Pick Up 35 | . . . 4 1 23 3 1 3 Fast Attach 31 | . 1 . 4 2 12 2 7 3 Attach 33 | . 4 . 2 . 14 7 3 3 Detach 19 | . 3 . 2 1 4 5 1 3 Swap 12 | . . . 1 . 8 2 1 . Drop 34 | . . . 1 . 21 8 2 2 Fire 152 | . 40 . 21 8 77 6 . . Melee 32 | . . . . . . 4 27 1 Ram . | . . . . . . . . . Kick 1 | . . . . . 1 . . . Crush 3 | . 3 . . . . . . . Escape Stasis . | . . . . . . . . . Rewire . | . . . . . . . . . Trap . | . . . . . . . . . Miscellaneous . | . . . . . . . . . Route ------- -11/Scrapyard -10/Materials -10/Mines (discovered 2 exits: [*Mat] / *Exi) -10/Exiles -9/Mines -8/Materials (discovered 2 exits: *Fac x2) -7/Factory -7/Lower Caves -7/Lower Caves History --------- Turn | Location | Event 1 | -11/Scrapyard | Discovered new exit (range 0) 1 | -11/Scrapyard | Entered Materials 199 | -10/Materials | Core integrity fell below 50% 227 | -10/Materials | Lost 3 parts (1p2w) 299 | -10/Materials | Discovered new exit (range 6) 310 | -10/Materials | Build established: Mutant 314 | -10/Materials | Entered Mines 314 | -10/Mines | Discovered new exit (range 7) 327 | -10/Mines | Received a Mining Laser from a helpful Derelict 342 | -10/Mines | Lost 3 parts (1p1n1w) 388 | -10/Mines | Deemed a non-threat by the Exiles lab entrance 388 | -10/Mines | Discovered new exit (range 5) 398 | -10/Mines | Entered Exiles 398 | -10/Exiles | Found Exiles lab destroyed 398 | -10/Exiles | Accompanied by 1 ally 714 | -10/Exiles | Opened EX-Vault 725 | -10/Exiles | Found Prototype Processor 725 | -10/Exiles | Identified Modified TNC 1512 | -10/Exiles | Discovered new exit (range 11) 1532 | -10/Exiles | Entered Mines 1533 | -9/Mines | Learned location of Storage (-9) 1619 | -9/Mines | Found a hidden stash of uninstalled traps 1730 | -9/Mines | Received a Rocket Launcher from a helpful Derelict 1961 | -9/Mines | Learned location of 1 exit from Materials 2104 | -9/Mines | Core integrity fell below 20% 2127 | -9/Mines | Discovered new exit (range 11) 2237 | -9/Mines | Entered Materials 2237 | -8/Materials | Evolved 4 slots: Propulsion x1, Utility x2, Weapon x1 2238 | -8/Materials | Identified exit to Factory 2629 | -8/Materials | Build established: Scavenger-Skirmisher 3506 | -8/Materials | Lost 5 parts (3n2w) 3587 | -8/Materials | Discovered exit to Factory (range 16) 3689 | -8/Materials | Core integrity fell below 50% 3717 | -8/Materials | Entered Factory 3717 | -7/Factory | Evolved 2 slots: Propulsion x1, Utility x1 3729 | -7/Factory | Lost 8 parts (2p2n1u3w) 4028 | -7/Factory | Discovered new exit (range 9) 4039 | -7/Factory | Identified exit to Lower Caves 4043 | -7/Factory | Entered Lower Caves 4083 | -7/Lower Caves | Encountered a Warlord checkpoint 4267 | -7/Lower Caves | Lost 4 parts (1p1n2u) 4314 | -7/Lower Caves | Core integrity fell below 50% 4336 | -7/Lower Caves | Lost 5 parts (1p1n1u2w) 4585 | -7/Lower Caves | Discovered new exit (range 15) 4608 | -7/Lower Caves | Identified exit to Lower Caves 4609 | -7/Lower Caves | Entered another Lower Caves area 4888 | -7/Lower Caves | Encountered a Warlord checkpoint 4916 | -7/Lower Caves | Build established: Mutant 4932 | -7/Lower Caves | Learned location of 1 exit from Factory 5048 | -7/Lower Caves | Attracted the attention of an 0b10 outpost 5111 | -7/Lower Caves | Lost 5 parts (2n2u1w) 5125 | -7/Lower Caves | Core integrity fell below 20% 5144 | -7/Lower Caves | Destroyed by Y-64 Sentinel with Wave Gun Last Messages --------------- Imp. Light Armor Plating destroyed. 71-0RZ(k) destroyed. Penetrated by Slug. Critical hit (Destroy). Tearclaws destroyed. G-47 Trooper destroyed. Slug penetrates G-47 Trooper. G-47 Trooper destroyed. G-47 Trooper suffers critical hit (Burn). Penetrated by Slug. Mic. Nuclear Core severed. Med. Treads destroyed. Dropped Power Maul. Dropped Great Maul. Acquired Power Maul. C-30 ARC bursts open, deploying its payload. G-50 Soldier unfolds itself. G-47 Trooper unfolds itself. B-48 Gladiator unfolds itself. I-36 Angel unfolds itself. Map ----- +----------------------------------------------------+ | ???????????????????????????????????##%= ##?????# | | ???????????????????????????????????# %! #??????## | | ??????????????????????????????????## = #???????# | | ??????????????????????????????????# ##??????# | | ??????????????????????????????????# %##???????## | | ??????????????????????????????????# #?????????? | | ??????????????????????????????????# ##????????? | | ????????????????????????????####??# ###??????? | | ???????????????????????????## ?## ###????? | | ???????????????????????????# ?# ## ??? | | ????????????????????????????# ## | | ?????????????????????????????# ## | | ?????????????????????????????### #?# # | | ????????????????????????###????# #??### # | | ??????????????????###???# ###??# ### ##????? ? | | ?????????????????## ##### #### ### #?????? ? | | ?????????????????# ## ### #???????? | | ?????????????????# ### #???????? | | ?????????????????## / #??## ##??????? | | ??????????????????# ## #???# ####???? | | ?????????????????## ## #???# ## | | ?????????????????# ### ##???# | | ?????????????????# ## ##??##* | | ?????????????????# ## #### ### | | ?????????????????# ###Yb ## #??? | | ????????????????## ## @g % #??? | | ????????????????# gg i #?? | | ????????????????# ## #### #?? | | ????????????????## #########???# #### ##?? | | ?????????????????#########????????????####????#??? | | ?????????????????????????????????????????????????? | | ?????????????????????????????????????????????????? | | ?????????????????????????????????????????????????? | | ?????????????????????????????????????????????????? | | ?????????????????????????????????????????????????? | | ?????????????????????????????????????????????????? | | ?????????????????????????????????????????????????? | | ?????????????????????????????????????????????????? | | ?????????????????????????????????????????????????? | | ?????????????????????????????????????????????????? | | ?????????????????????????????????????????????????? | | ?????????????????????????????????????????????????? | | ?????????????????????????????????????????????????? | | ?????????????????????????????????????????????????? | | ?????????????????????????????????????????????????? | | | | | | | | | | | +----------------------------------------------------+ Best States ------------- Heat Dissipation 53 Energy Generation 18 Energy Capacity 515 Matter Stores 300 Matter Capacity 300 Sight Range 16 Terrain Scan Range 18 Terrain Scan Density 10 Jamming Range 12 Armor Coverage 150 Propulsion Shielding 66 Utility Shielding 66 Melee Speed Boost 20 Evasion (%) 55 Recoil Reduction 3 Item Schematics ----------------- None Robot Schematics ------------------ None Fabricated ------------ Nothing Alien Tech Used ----------------- None Achievements -------------- None Challenges ------------ None Game ------ Seed ThrusterTractorLoader Manual? 0 Play Time 00:43:54 Cumulative 71.6 hours Start 2024.04.20 @ 11:01:47 End 2024.04.20 @ 12:06:14 Sessions 1 Manual Loads 0 Difficulty Rogue Special Mode None Game No. 152 Rogue 150 Adventurer 2 Explorer 0 Win Type - Total 1 Types 1/0/0/0/0/0/0/0/0 Lore% 46 Gallery% 47 Achievement% 36 Wizard Run 0 Options --------- Layout 0 ASCII 0 Keyboard 1 Movement Numpad Keybinds 1 Fullscreen 2 Font 18/SmallcapsGlow Map View 76x50 Zoom Use 0% Tactical HUD 1 Map Filters NONE Filters NONE Steam 1 RUN: 51fceee2-e6a5-40e5-b16f-f72f56acf241